bitfinex-derivatives/quotes_SOLF0:USTF0_20260129
["timestamp","ask_amount","ask_price","bid_price","bid_amount"]
[1769697923964,9.47635237,121.18,121.12,3.3797884]
[1769697924565,7.4384,121.18,121.12,5.41774077]
[1769697925274,7.4384,121.18,121.12,3.3797884]
[1769697926867,7.4384,121.18,121.12,10.8217884]
[1769697927073,2.03795237,121.19,121.12,5.41774077]
[1769697927969,1.43151247,121.2,121.13,10.92357024]
[1769697928175,2.03795237,121.21,121.14,5.52012261]
[1769697928580,3.47318997,121.21,121.14,10.92307024]
[1769697928776,2.03795237,121.2,121.14,10.92307024]
[1769697929666,8.8718376,121.21,121.11,115.7729]
[1769697929870,426.1845,121.26,121.11,115.7729]
[1769697929871,1.4352376,121.23,121.16,7.4391]
[1769697930270,8.8713376,121.22,121.15,3.48217024]
[1769697930475,1.4352376,121.22,121.15,10.92237024]
[1769697930974,1.4352376,121.22,121.15,3.48217024]
[1769697931475,7.4373,121.2,121.15,3.48217024]
[1769697931669,1.4352376,121.22,121.15,3.48217024]
[1769697933367,7.4366,121.21,121.15,10.92247024]
[1769697934173,8.8681363,121.21,121.15,10.92247024]
[1769697934869,7.436,121.22,121.15,10.92247024]
[1769697935070,1.4315363,121.23,121.16,7.4394]
[1769697935471,1.4315363,121.25,121.17,3.58305811]
[1769697935680,1.4315363,121.25,121.18,7.4383]
[1769697935877,7.4356,121.23,121.17,3.58305811]
[1769697936079,7.4356,121.23,121.17,11.02205811]
[1769697936282,1.4315363,121.24,121.17,3.58305811]
[1769697936478,7.4361,121.22,121.17,3.58305811]
[1769697939174,115.6358,121.26,121.17,3.58305811]
[1769697939175,1.4315363,121.28,121.17,3.58305811]
[1769697939681,1.4315363,121.26,121.17,3.58305811]
[1769697939983,7.4348,121.24,121.18,3.58305811]
[1769697941282,7.4348,121.24,121.18,11.02145811]
[1769697941679,7.4348,121.24,121.19,3.58305811]
[1769697941980,8.8656363,121.26,121.19,3.58305811]
[1769697942485,7.4345,121.25,121.19,3.58305811]
[1769697943477,7.4345,121.25,121.2,3.58305811]
[1769697943683,1.4315363,121.29,121.2,3.58305811]
[1769697943884,1.4315363,121.28,121.2,3.58305811]
[1769697944084,7.4335,121.26,121.2,3.58305811]
[1769697944682,7.4335,121.26,121.2,11.02005811]
[1769697944982,8.8643363,121.28,121.21,3.58305811]
[1769697945578,115.5981,121.3,121.22,3.58305811]
[1769697945579,1.4315363,121.3,121.22,3.58305811]
[1769697946087,7.4317,121.29,121.22,3.58305811]
[1769697946877,7.4317,121.29,121.23,3.58305811]
[1769697947084,1.4315363,121.3,121.23,3.58305811]
[1769697947684,7.4318,121.29,121.23,3.58305811]
[1769697948588,7.4324,121.28,121.21,3.58305811]
[1769697949389,7.4324,121.28,121.21,11.01955811]
[1769697949592,9.46705225,121.28,121.22,3.58305811]
[1769697949992,9.46705225,121.28,121.22,11.01895811]
[1769697950492,7.4324,121.28,121.22,13.05361036]
[1769697950694,3.46618855,121.3,121.23,13.05301036]
[1769697951094,2.03465225,121.29,121.23,3.58305811]
[1769697951495,9.46695225,121.29,121.23,3.58305811]
[1769697951997,7.4323,121.29,121.23,3.58305811]
[1769697952389,7.4323,121.29,121.23,5.61771036]
[1769697952993,7.4323,121.29,121.23,3.58305811]
[1769697953689,3.46618855,121.3,121.23,11.01805811]
[1769697953893,1.4315363,121.32,121.25,5.61771036]
[1769697954096,3.46618855,121.32,121.25,5.61771036]
[1769697954599,8.8620363,121.32,121.26,13.05121036]
[1769697955195,8.8620363,121.32,121.26,11.01655811]
[1769697955499,1.4315363,121.32,121.26,13.05121036]
[1769697956197,322.49883372,121.35,121.28,3.27652072]
[1769697956392,324.53348597,121.35,121.28,5.31117297]
[1769697956593,1.42979063,121.36,121.3,3.27652072]
[1769697956789,122.93936406,121.43,121.32,5.31117297]
[1769697956790,3.46444288,121.39,121.32,5.31117297]
[1769697956994,1.42979063,121.39,121.33,5.31117297]
[1769697957403,3.46444288,121.39,121.33,3.27652072]
[1769697957800,10.89244288,121.35,121.28,3.27652072]
[1769697958104,2.03465225,121.33,121.28,3.27652072]
[1769697958305,2.03465225,121.34,121.28,3.27652072]
[1769697958902,9.46265225,121.35,121.29,3.27652072]
[1769697959707,2.03465225,121.34,121.29,3.27652072]
[1769697960398,8.85569063,121.39,121.31,7.4304]
[1769697960599,2.03465225,121.38,121.31,3.27652072]
[1769697960809,2.03465225,121.37,121.31,3.27652072]
[1769697961118,2.03465225,121.36,121.31,3.27652072]
[1769697961308,3.46444288,121.35,121.28,3.27652072]
[1769697961510,2.03465225,121.33,121.28,3.27652072]
[1769697961714,2.03465225,121.35,121.29,10.70802072]
[1769697961914,9.46215225,121.36,121.29,10.70802072]
[1769697962209,7.428,121.35,121.29,3.27652072]
[1769697962416,9.46265225,121.35,121.29,3.27652072]
[1769697963510,7.428,121.35,121.29,3.27652072]
[1769697963819,8.85709063,121.37,121.3,3.27652072]
[1769697964018,10.89174288,121.37,121.3,3.27652072]
[1769697964213,2.03465225,121.41,121.34,3.27652072]
[1769697964425,7.4246,121.41,121.34,5.31117297]
[1769697964616,9.45925225,121.41,121.34,5.31117297]
[1769697964917,1.42979063,121.42,121.34,5.31117297]
[1769697964918,3.46444288,121.42,121.34,5.31117297]
[1769697965113,2.03465225,121.41,121.34,10.70512072]
[1769697965317,2.03465225,121.41,121.34,12.73977297]
[1769697965515,3.46444288,121.42,121.35,3.27652072]
[1769697965710,1.42979063,121.42,121.35,3.27652072]
[1769697966409,7.4243,121.41,121.35,3.27652072]
[1769697966818,1.42979063,121.42,121.35,10.70452072]
[1769697967019,8.85369063,121.42,121.35,3.27652072]
[1769697967217,1.42979063,121.42,121.35,3.27652072]
[1769697967615,237.53298806,121.45,121.35,3.27652072]
[1769697967616,5.17871872,121.45,121.35,3.27652072]
[1769697967808,1.42979063,121.44,121.35,3.27652072]
[1769697968011,1.42979063,121.44,121.36,7.4271]
[1769697968421,115.4378,121.47,121.38,3.27652072]
[1769697968607,116.86759063,121.47,121.38,3.27652072]
[1769697969020,1.42979063,121.46,121.38,3.27652072]
[1769697969423,7.4219,121.45,121.38,10.70262072]
[1769697969809,1.42979063,121.46,121.38,3.27652072]
[1769697971411,7.4227,121.44,121.38,3.27652072]
[1769697971812,1.42979063,121.46,121.38,3.27652072]
[1769697972012,7.422,121.45,121.38,10.70262072]
[1769697973525,7.4225,121.44,121.38,3.27652072]
[1769697974123,8.85159063,121.46,121.38,3.27652072]
[1769697974327,1.42979063,121.46,121.38,3.27652072]
[1769697975327,7.4219,121.45,121.38,3.27652072]
[1769697975830,8.85109063,121.46,121.38,10.70262072]
[1769697976324,1.42979063,121.46,121.39,3.27652072]
[1769697977230,8.85179063,121.45,121.39,3.27652072]
[1769697977421,1.42979063,121.45,121.37,3.27652072]
[1769697978427,7.4228,121.44,121.38,3.27652072]
[1769697980628,1.42979063,121.43,121.36,3.27652072]
[1769697981927,8.85319063,121.43,121.36,3.27652072]
[1769697983633,7.4238,121.42,121.36,3.27652072]
[1769697985627,1.4272836,121.41,121.33,3.60104375]
[1769697986535,8.8522836,121.4,121.33,3.60104375]
[1769697987137,8.8522836,121.4,121.33,11.03014375]
[1769697987539,7.4257,121.39,121.33,3.60104375]
[1769697987935,1.4272836,121.37,121.28,3.60104375]
[1769697988233,1.4272836,121.35,121.28,3.60104375]
[1769697988440,7.4287,121.34,121.28,3.60104375]
[1769697989126,1.4272836,121.35,121.28,3.60104375]
[1769697990038,8.8553836,121.35,121.28,3.60104375]
[1769697990239,1.4272836,121.35,121.28,3.60104375]
[1769697990534,7.4293,121.33,121.28,3.60104375]
[1769697990739,1.4272836,121.35,121.28,3.60104375]
[1769697991238,7.4273,121.37,121.29,3.60104375]
[1769697991832,7.4273,121.37,121.29,11.03264375]
[1769697992032,1.4272836,121.36,121.29,3.60104375]
[1769697992828,6.60600232,121.36,121.26,3.52386848]
[1769697993039,1.43343299,121.35,121.26,3.52386848]
[1769697993827,1.43343299,121.35,121.27,3.52386848]
[1769697995241,1.43343299,121.31,121.24,3.52386848]
[1769697995940,8.86443299,121.31,121.24,3.52386848]
[1769697996139,1.43343299,121.31,121.24,3.52386848]
[1769697996335,117.02113299,121.31,121.24,3.52386848]
[1769697996640,5.17871872,121.3,121.24,3.52386848]
[1769697997237,7.4324,121.28,121.24,3.52386848]
[1769697997442,3.2561855,121.27,121.16,115.727]
[1769697997629,3.2561855,121.27,121.17,115.7184]
[1769697997832,5.17871872,121.28,121.17,115.7184]
[1769697998433,8.43490422,121.28,121.17,115.7184]
[1769697998733,7.4322,121.29,121.2,7.4371]
[1769697998936,3.2561855,121.29,121.2,7.4371]
[1769697999536,3.2561855,121.29,121.21,3.52386848]
[1769698000349,7.4324,121.28,121.21,3.52386848]
[1769698004147,3.2561855,121.29,121.22,3.52386848]
[1769698004844,7.4325,121.28,121.22,3.52386848]
[1769698005147,3.2561855,121.32,121.22,3.52386848]
[1769698005343,3.2561855,121.32,121.24,3.52386848]
[1769698005945,7.4312,121.3,121.24,3.52386848]
[1769698009643,10.6866855,121.31,121.25,3.52386848]
[1769698010241,3.2561855,121.36,121.26,3.52386848]
[1769698010949,7.4287,121.34,121.27,7.4329]
[1769698011144,7.4287,121.34,121.27,10.95676848]
[1769698011350,3.2561855,121.36,121.27,3.52386848]
[1769698011646,3.2561855,121.34,121.27,3.52386848]
[1769698012148,7.4292,121.34,121.27,3.52386848]
[1769698012645,7.4294,121.33,121.27,3.52386848]
[1769698013152,7.4299,121.32,121.27,3.52386848]
[1769698013353,3.2561855,121.34,121.27,3.52386848]
[1769698013856,7.4299,121.32,121.27,3.52386848]
[1769698014151,3.2561855,121.33,121.27,3.52386848]
[1769698014347,7.4299,121.32,121.27,3.52386848]
[1769698014751,3.2561855,121.33,121.27,3.52386848]
[1769698016152,3.58690733,121.32,121.24,3.54888264]
[1769698016947,7.4311,121.3,121.24,3.54888264]
[1769698019052,3.58690733,121.32,121.24,3.54888264]
[1769698019053,7.4308,121.31,121.24,10.98358264]
[1769698019855,3.58690733,121.32,121.25,10.98288264]
[1769698020254,11.01680733,121.32,121.25,10.98288264]
[1769698020455,3.58690733,121.32,121.25,3.54888264]
[1769698021349,3.58690733,121.3,121.2,3.54888264]
[1769698021544,3.58690733,121.28,121.2,3.54888264]
[1769698021743,7.4329,121.27,121.2,10.98578264]
[1769698022148,7.4318,121.29,121.22,3.54888264]
[1769698022552,11.01870733,121.29,121.22,3.54888264]
[1769698022752,3.58690733,121.28,121.2,3.54888264]
[1769698023061,3.58690733,121.26,121.18,3.54888264]
[1769698023355,7.4349,121.24,121.18,3.54888264]
[1769698023553,11.02180733,121.24,121.18,3.54888264]
[1769698025861,3.58690733,121.22,121.12,3.54888264]
[1769698026255,11.02460733,121.2,121.12,3.54888264]
[1769698026852,3.58690733,121.2,121.12,3.54888264]
[1769698027559,11.02320733,121.22,121.13,3.54888264]
[1769698028252,11.02320733,121.22,121.14,3.54888264]
[1769698028253,3.58690733,121.22,121.14,3.54888264]
[1769698028459,8.76562605,121.25,121.15,3.54888264]
[1769698028648,3.58690733,121.25,121.15,3.54888264]
[1769698028850,7.4349,121.24,121.15,3.54888264]
[1769698029047,3.58690733,121.24,121.15,3.54888264]
[1769698030360,7.4356,121.23,121.15,3.54888264]
[1769698030560,3.58690733,121.23,121.15,3.54888264]
[1769698031655,3.58690733,121.21,121.13,3.54888264]
[1769698033460,3.58690733,121.23,121.13,3.54888264]
[1769698033863,3.58690733,121.23,121.14,3.54888264]
[1769698034564,7.4361,121.22,121.14,299.62968264]
[1769698034864,3.58690733,121.23,121.15,3.54888264]
[1769698035065,115.6385,121.26,121.15,3.54888264]
[1769698035066,3.58690733,121.26,121.15,3.54888264]
[1769698035665,3.58690733,121.29,121.18,3.54888264]
[1769698035963,3.58690733,121.29,121.19,3.54888264]
[1769698036166,7.4327,121.28,121.2,299.74598264]
[1769698036359,7.4327,121.28,121.21,3.54888264]
[1769698037162,7.4331,121.27,121.21,3.54888264]
[1769698037564,3.58690733,121.28,121.21,3.54888264]
[1769698037763,7.4329,121.27,121.21,3.54888264]
[1769698039969,7.4336,121.26,121.19,7.4378]
[1769698041067,3.58690733,121.24,121.15,3.54888264]
[1769698041268,3.58690733,121.22,121.15,3.54888264]
[1769698041569,11.02350733,121.22,121.15,3.54888264]
[1769698042364,3.58690733,121.22,121.15,3.54888264]
[1769698042567,3.58690733,121.25,121.15,3.54888264]
[1769698043375,7.4348,121.24,121.16,10.98848264]
[1769698044764,7.4354,121.23,121.16,10.98848264]
[1769698044966,3.58690733,121.25,121.16,10.98848264]
[1769698044967,3.58690733,121.25,121.17,3.54888264]
[1769698045368,7.4354,121.23,121.17,3.54888264]
[1769698046168,7.4361,121.22,121.17,3.54888264]
[1769698046668,7.4368,121.21,121.15,293.36223477]
[1769698046973,3.44161235,121.23,121.15,293.36223477]
[1769698047174,7.436,121.22,121.15,293.36223477]
[1769698048073,3.44161235,121.23,121.15,293.36223477]
[1769698048374,3.44161235,121.22,121.13,3.30223477]
[1769698049374,7.4367,121.21,121.13,10.74373477]
[1769698049871,7.4367,121.21,121.14,10.74313477]
[1769698050078,10.87761235,121.22,121.15,3.30223477]
[1769698050665,7.4366,121.21,121.15,3.30223477]
[1769698050866,3.44161235,121.21,121.12,3.30223477]
[1769698051368,7.4379,121.19,121.12,3.30223477]
[1769698052377,7.4386,121.18,121.12,3.30223477]
[1769698054279,10.89833647,121.19,121.12,3.30223477]
[1769698054886,7.4385,121.18,121.12,3.30223477]
[1769698055779,3.46053647,121.18,121.1,3.44162504]
[1769698057277,7.4391,121.17,121.1,10.88492504]
[1769698057882,10.89963647,121.17,121.1,10.88492504]
[1769698058083,7.4397,121.16,121.1,3.44162504]
[1769698058285,3.46053647,121.2,121.11,3.44162504]
[1769698058476,3.46053647,121.23,121.12,3.44162504]
[1769698058675,7.4367,121.21,121.14,10.88252504]
[1769698058880,7.4367,121.21,121.14,3.44162504]
[1769698059185,7.4372,121.2,121.14,3.44162504]
[1769698059579,3.46053647,121.21,121.14,3.44162504]
[1769698059982,7.4355,121.23,121.16,3.44162504]
[1769698060184,3.46053647,121.26,121.17,3.44162504]
[1769698060683,316.98905018,121.28,121.2,3.44162504]
[1769698060684,320.44958665,121.28,121.2,3.44162504]
[1769698060887,320.44958665,121.28,121.21,3.44162504]
[1769698061190,327.88218665,121.28,121.21,3.44162504]
[1769698061880,3.46053647,121.31,121.23,3.44162504]
[1769698062586,3.46053647,121.34,121.26,3.44162504]
[1769698062786,3.46053647,121.34,121.27,3.44162504]
[1769698063389,506.9184,121.4,121.27,3.44162504]
[1769698063390,3.46053647,121.4,121.3,3.44162504]
[1769698063881,118.96263647,121.4,121.3,296.52162504]
[1769698064083,3.46053647,121.4,121.31,3.44162504]
[1769698064677,10.88643647,121.39,121.31,3.44162504]
[1769698064883,3.46053647,121.38,121.31,3.44162504]
[1769698065083,3.46053647,121.38,121.29,293.14]
[1769698065284,3.46053647,121.38,121.29,296.58162504]
[1769698066090,3.46053647,121.37,121.29,3.44162504]
[1769698066290,3.46053647,121.4,121.3,3.44162504]
[1769698066484,3.46053647,121.4,121.31,10.87182504]
[1769698066795,3.46053647,121.43,121.35,8.63709931]
[1769698067192,3.46053647,121.43,121.35,3.44162504]
[1769698070391,3.46053647,121.45,121.36,3.44162504]
[1769698070791,3.46053647,121.48,121.38,3.44162504]
[1769698071000,3.46053647,121.48,121.41,3.44162504]
[1769698071292,324.30939227,121.51,121.43,5.19547427]
[1769698071687,324.30939227,121.51,121.43,8.63709931]
[1769698071688,3.46053647,121.51,121.43,8.63709931]
[1769698071996,389.8287,121.56,121.44,3.44162504]
[1769698071997,3.46053647,121.54,121.44,3.44162504]
[1769698072194,3.46053647,121.54,121.46,8.63709931]
[1769698072493,3.46053647,121.54,121.46,5.19547427]
[1769698072696,3.46053647,121.52,121.44,3.44162504]
[1769698073497,10.87853647,121.52,121.44,3.44162504]
[1769698074094,3.46053647,121.47,121.38,3.44162504]
[1769698074284,3.46053647,121.46,121.38,3.44162504]
[1769698074483,118.88003647,121.49,121.38,3.44162504]
[1769698075083,3.46053647,121.47,121.38,3.44162504]
[1769698076290,3.46053647,121.47,121.35,3.27657646]
[1769698076291,118.93737593,121.45,121.35,3.27657646]
[1769698076493,3.48117593,121.44,121.35,3.27657646]
[1769698076890,3.48117593,121.47,121.35,3.27657646]
[1769698077088,3.48117593,121.47,121.38,3.27657646]
[1769698078086,3.48117593,121.5,121.41,3.27657646]
[1769698079994,3.48117593,121.49,121.4,5.19547427]
[1769698080295,3.48117593,121.47,121.38,3.27657646]
[1769698080693,7.4198,121.49,121.38,3.27657646]
[1769698080894,7.4198,121.49,121.37,120.72087427]
[1769698080895,10.90097593,121.49,121.39,3.27657646]
[1769698082196,3.48117593,121.49,121.41,3.27657646]
[1769698082695,10.90107593,121.49,121.41,3.27657646]
[1769698082901,316.61917601,121.52,121.41,3.27657646]
[1769698083105,3.48117593,121.51,121.41,3.27657646]
[1769698084398,10.89987593,121.51,121.42,10.70007646]
[1769698084913,313.13800008,121.52,121.44,3.27657646]
[1769698085415,313.13800008,121.52,121.45,10.69827646]
[1769698085611,3.48117593,121.54,121.46,3.27657646]
[1769698086112,10.89777593,121.54,121.47,3.27657646]
[1769698086415,3.48117593,121.54,121.47,3.27657646]
[1769698086910,3.48117593,121.57,121.48,3.27657646]
[1769698087902,10.89587593,121.57,121.49,7.4193]
[1769698088306,10.89587593,121.57,121.48,3.27657646]
[1769698088908,3.48117593,121.55,121.45,415.57915073]
[1769698089115,3.48117593,121.58,121.47,3.27657646]
[1769698089707,3.48117593,121.56,121.47,3.27657646]
[1769698090216,3.48117593,121.56,121.48,10.69647646]
[1769698091102,7.4159,121.55,121.48,3.27657646]
[1769698091306,3.48117593,121.55,121.46,7.4208]
[1769698092105,3.48117593,121.57,121.48,3.27657646]
[1769698092619,3.48117593,121.56,121.48,3.27657646]
[1769698093820,3.48117593,121.56,121.49,7.4193]
[1769698094218,3.48117593,121.56,121.48,3.27657646]
[1769698094619,3.48117593,121.56,121.5,7.4187]
[1769698095116,7.4132,121.6,121.5,3.27657646]
[1769698095319,3.48117593,121.62,121.53,3.27657646]
[1769698095713,7.4122,121.61,121.53,10.69347646]
[1769698095910,3.48117593,121.61,121.53,3.27657646]
[1769698096618,10.89377593,121.61,121.54,7.4164]
[1769698097219,10.89397593,121.6,121.51,115.3931]
[1769698097415,3.48117593,121.6,121.52,3.27657646]
[1769698097616,3.48117593,121.6,121.52,118.65907646]
[1769698097816,9.8500147,121.63,121.55,3.27657646]
[1769698097817,8.16476774,121.63,121.55,3.27657646]
[1769698098220,15.57576774,121.63,121.56,7.4151]
[1769698099224,15.57576774,121.63,121.55,3.27657646]
[1769698099611,8.16476774,121.63,121.55,3.27657646]
[1769698100117,7.4128,121.6,121.52,3.27657646]
[1769698100717,3.48117593,121.59,121.49,3.27657646]
[1769698100915,3.48117593,121.57,121.49,3.27657646]
[1769698101115,3.48117593,121.57,121.49,10.69597646]
[1769698101611,3.48117593,121.57,121.49,3.27657646]
[1769698101812,3.48117593,121.57,121.5,7.4188]
[1769698102021,3.48117593,121.57,121.49,3.27657646]
[1769698102216,10.89447593,121.6,121.5,7.4185]
[1769698102421,10.89447593,121.6,121.51,3.27657646]
[1769698102920,3.48117593,121.6,121.51,3.27657646]
[1769698104323,7.4135,121.59,121.51,10.69467646]
[1769698104821,3.48117593,121.59,121.51,3.27657646]
[1769698105026,10.89507593,121.59,121.51,3.27657646]
[1769698106325,10.89507593,121.59,121.51,10.69467646]
[1769698106529,10.89507593,121.59,121.51,3.27657646]
[1769698106728,7.4126,121.61,121.51,3.27657646]
[1769698107123,10.89665485,121.61,121.51,3.27657646]
[1769698107526,3.48405485,121.61,121.53,10.70585227]
[1769698107723,3.48405485,121.61,121.53,3.28885227]
[1769698108726,4.68359181,121.63,121.54,3.28885227]
[1769698108929,8.16764666,121.63,121.54,3.28885227]
[1769698109429,15.57864666,121.63,121.54,3.28885227]
[1769698110031,15.57864666,121.63,121.55,7.4158]
[1769698110229,3.48405485,121.62,121.55,7.4158]
[1769698110427,3.48405485,121.62,121.56,7.4151]
[1769698111029,10.89555485,121.62,121.56,7.4151]
[1769698111233,3.48405485,121.61,121.56,7.4151]
[1769698111532,3.48405485,121.61,121.54,3.28885227]
[1769698111832,4.68359181,121.63,121.56,3.28885227]
[1769698112735,4.68359181,121.63,121.56,10.70355227]
[1769698113637,4.68359181,121.63,121.57,7.4145]
[1769698114035,4.68359181,121.63,121.57,10.70793813]
[1769698114237,4.68359181,121.63,121.58,7.4139]
[1769698114631,4.68359181,121.63,121.57,3.29343813]
[1769698115132,8.42709163,121.7,121.59,3.29343813]
[1769698115334,3.26066874,121.7,121.6,3.29343813]
[1769698115631,10.66786874,121.7,121.62,7.4114]
[1769698115936,3.26066874,121.7,121.6,3.29343813]
[1769698116236,3.26066874,121.7,121.6,292.23343813]
[1769698116633,7.4079,121.68,121.6,3.29343813]
[1769698116831,3.26066874,121.67,121.57,3.29343813]
[1769698118138,7.4104,121.64,121.57,3.29343813]
[1769698118735,3.26066874,121.65,121.57,3.29343813]
[1769698118934,3.26066874,121.68,121.59,3.29343813]
[1769698119532,10.66856874,121.68,121.59,3.29343813]
[1769698120437,3.26066874,121.68,121.61,7.4121]
[1769698120942,3.26066874,121.68,121.59,3.29343813]
[1769698121438,7.4085,121.67,121.6,7.4127]
[1769698121742,3.26066874,121.68,121.59,3.29343813]
[1769698121942,10.66746874,121.7,121.63,7.4109]
[1769698122329,3.26066874,121.7,121.63,7.4109]
[1769698122528,10.66736874,121.7,121.6,118.60063813]
[1769698122731,3.26066874,121.7,121.6,118.60063813]
[1769698122947,3.26066874,121.7,121.61,3.29343813]
[1769698124845,7.4079,121.68,121.61,10.70533813]
[1769698125344,3.26066874,121.7,121.61,3.29343813]
[1769698125747,3.26066874,121.7,121.63,7.4109]
[1769698126437,10.66736874,121.7,121.63,7.4109]
[1769698126632,3.26066874,121.69,121.61,7.4116]
[1769698127139,3.26066874,121.69,121.61,10.70503813]
[1769698127439,7.408,121.68,121.62,7.4115]
[1769698127739,3.26066874,121.69,121.64,7.4102]
[1769698128337,3.26066874,121.69,121.62,7.411]
[1769698128941,10.66986874,121.66,121.58,3.29343813]
[1769698129944,3.26066874,121.65,121.58,3.29343813]
[1769698130141,3.26066874,121.65,121.55,3.29343813]
[1769698130550,3.26066874,121.62,121.55,3.29343813]
[1769698131442,3.26066874,121.62,121.55,10.70903813]
[1769698131644,3.26066874,121.62,121.53,3.29343813]
[1769698131944,7.4121,121.62,121.53,3.29343813]
[1769698132138,3.26066874,121.63,121.53,3.29343813]
[1769698132750,7.4123,121.61,121.53,3.29343813]
[1769698133148,3.26066874,121.63,121.53,3.29343813]
[1769698133339,3.26066874,121.6,121.53,3.29343813]
[1769698134652,10.67376874,121.6,121.53,3.29343813]
[1769698134949,3.26066874,121.6,121.51,3.29343813]
[1769698135347,3.40165059,121.59,121.51,3.29343813]
[1769698136348,10.81505059,121.59,121.51,3.29343813]
[1769698137644,7.4141,121.58,121.51,3.29343813]
[1769698138439,7.4133,121.6,121.52,3.52779702]
[1769698139348,7.4133,121.6,121.53,3.52779702]
[1769698140455,10.81515059,121.59,121.5,10.94609702]
[1769698140650,10.81515059,121.59,121.51,3.52779702]
[1769698140955,123.86217348,121.62,121.52,3.52779702]
[1769698141156,10.81445059,121.6,121.52,3.52779702]
[1769698141348,3.40165059,121.6,121.52,3.52779702]
[1769698141545,7.4134,121.59,121.52,3.52779702]
[1769698141749,3.40165059,121.6,121.52,3.52779702]
[1769698141947,3.40165059,121.59,121.5,3.52779702]
[1769698142153,10.81525059,121.59,121.5,3.52779702]
[1769698142458,3.40165059,121.58,121.5,3.52779702]
[1769698142651,10.81575059,121.58,121.5,3.52779702]
[1769698142856,3.40165059,121.57,121.48,7.4195]
[1769698143154,10.81635059,121.57,121.48,10.94729702]
[1769698143358,3.40165059,121.56,121.48,10.94729702]
[1769698143750,10.81685059,121.56,121.48,10.94729702]
[1769698143945,3.40165059,121.56,121.48,10.94729702]
[1769698145362,3.40165059,121.54,121.46,7.4207]
[1769698145748,3.40165059,121.54,121.43,290.68779702]
[1769698145946,3.40165059,121.54,121.44,3.52779702]
[1769698146354,3.40165059,121.53,121.44,3.52779702]
[1769698146755,3.40165059,121.56,121.47,3.52779702]
[1769698147157,10.81725059,121.56,121.48,7.4198]
[1769698147353,3.40165059,121.56,121.48,7.4198]
[1769698147662,3.40165059,121.56,121.49,3.52779702]
[1769698148260,3.40165059,121.59,121.49,3.52779702]
[1769698148662,3.40165059,121.59,121.51,7.4181]
[1769698149166,3.40165059,121.59,121.49,12.58552289]
[1769698149466,3.40165059,121.59,121.49,10.94689702]
[1769698149856,3.40165059,121.59,121.5,10.94649702]
[1769698150665,3.40165059,121.57,121.48,294.3995]
[1769698150962,3.40165059,121.57,121.48,10.94729702]
[1769698151158,3.40165059,121.57,121.48,3.52779702]
[1769698151362,3.40165059,121.57,121.5,7.4187]
[1769698151562,3.40165059,121.57,121.48,3.52779702]
[1769698153467,3.40165059,121.57,121.49,3.52779702]
[1769698154068,7.4152,121.56,121.49,3.52779702]
[1769698154471,10.81495059,121.6,121.52,3.52779702]
[1769698154765,3.40165059,121.64,121.52,3.52779702]
[1769698154961,118.67595059,121.64,121.54,3.52779702]
[1769698155164,3.40165059,121.63,121.54,3.52779702]
[1769698156068,7.4122,121.61,121.54,3.52779702]
[1769698157968,10.81305059,121.63,121.54,10.94409702]
[1769698158270,3.40165059,121.66,121.55,3.52779702]
[1769698158769,3.40165059,121.66,121.54,3.52779702]
[1769698159265,3.40165059,121.66,121.53,286.26]
[1769698159469,3.40165059,121.66,121.54,3.52779702]
[1769698159770,3.40165059,121.61,121.52,10.94489702]
[1769698159979,3.40165059,121.61,121.53,3.52779702]
[1769698160365,3.40165059,121.61,121.54,3.52779702]
[1769698161371,3.40165059,121.61,121.54,10.94399702]
[1769698163973,3.40165059,121.64,121.56,3.52779702]
[1769698164179,3.40165059,121.67,121.56,3.52779702]
[1769698164578,3.40165059,121.66,121.56,7.4146]
[1769698164871,139.9772,121.68,121.56,7.4146]
[1769698164872,3.40165059,121.64,121.56,3.52779702]
[1769698165369,3.28048258,121.68,121.6,3.55665935]
[1769698165564,3.28048258,121.68,121.57,3.55665935]
[1769698165970,3.28048258,121.65,121.57,3.55665935]
[1769698166170,3.28048258,121.65,121.55,115.3548]
[1769698166372,3.28048258,121.65,121.57,7.4144]
[1769698166576,3.28048258,121.65,121.55,115.3548]
[1769698166771,3.28048258,121.65,121.59,7.4133]
[1769698167477,3.28048258,121.65,121.6,7.4126]
[1769698169272,24.74,121.71,121.61,3.55665935]
[1769698169273,3.28048258,121.71,121.61,3.55665935]
[1769698169781,10.68718258,121.7,121.63,7.4109]
[1769698169972,10.68718258,121.7,121.61,3.55665935]
[1769698169973,3.28048258,121.7,121.61,3.55665935]
[1769698170574,3.28048258,121.69,121.61,10.96815935]
[1769698170879,3.28048258,121.69,121.61,3.55665935]
[1769698172279,7.408,121.68,121.61,3.55665935]
[1769698174782,7.4085,121.67,121.61,3.55665935]
[1769698175183,3.58662119,121.67,121.58,3.49902727]
[1769698175473,7.4098,121.65,121.58,3.49902727]
[1769698176073,7.4103,121.64,121.58,3.49902727]
[1769698176671,118.83352119,121.67,121.58,3.49902727]
[1769698176868,3.58662119,121.67,121.56,5.16583796]
[1769698177068,3.58662119,121.67,121.55,288.35902727]